fUST/lending_fUST_20250918
["ID","MTS","AMOUNT","RATE_DAILY","PERIOD"]
[385946417,1758145843426,-500.0,0.00024932,2]
[385946419,1758145843437,-151.0,0.00024932,2]
[385946421,1758145843446,-151.0,0.00024932,2]
[385946423,1758145843455,-169.0,0.00024932,2]
[385946425,1758145843464,-253.25824784,0.00024932,2]
[385946427,1758145843473,-240.93027155,0.00024932,2]
[385946429,1758145843483,-151.0,0.00024932,2]
[385946430,1758145843493,-227.38158039,0.00024932,2]
[385946432,1758145843502,-151.0,0.00024932,2]
[385946434,1758145843511,-500.0,0.00024932,2]
[385946436,1758145843521,-157.74312269,0.00024932,2]
[385946438,1758145843530,-500.0,0.00024932,2]
[385946440,1758145843539,-151.0,0.00024932,2]
[385946442,1758145843548,-500.0,0.00024932,2]
[385946444,1758145843557,-152.21553423,0.00024932,2]
[385946445,1758145843566,-206.96162217,0.00024932,2]
[385946447,1758145843575,-157.0,0.00024932,2]
[385946449,1758145843585,-500.0,0.00024932,2]
[385946451,1758145843594,-151.0,0.00024932,2]
[385946453,1758145843603,-500.0,0.00024932,2]
[385946455,1758145843612,-157.0,0.00024932,2]
[385946457,1758145843625,-163.42770127,0.00024932,2]
[385946458,1758145843634,-1500.0,0.00024968,2]
[385946460,1758145843643,-1500.0,0.00024968,2]
[385946462,1758145843652,-1324.52,0.0002497,2]
[385946464,1758145843662,-1324.52,0.0002497,2]
[385946466,1758145843672,-1324.52,0.0002497,2]
[385946468,1758145843681,-1324.52,0.0002497,2]
[385946470,1758145843691,-300.0,0.00024973,2]
[385946471,1758145843700,-1324.52,0.0002498,2]
[385946473,1758145843710,-5036.28722938,0.00024986,2]
[385946475,1758145843719,-3043.1048521,0.00024986,2]
[385946477,1758145843728,-1324.52,0.00024989,2]
[385946479,1758145843737,-1071.06049471,0.00025,2]
[385946481,1758145843746,-10500.46608821,0.00025,2]
[385946483,1758145843755,-417.15472785,0.00025,10]
[385946484,1758145843766,-417.15472785,0.00025,10]
[385946486,1758145843775,-1820.17991871,0.00025023,2]
[385946488,1758145843784,-1500.0,0.00025068,2]
[385946490,1758145843793,-1500.0,0.00025068,2]
[385946492,1758145843802,-1500.0,0.00025068,2]
[385946494,1758145843811,-1500.0,0.00025068,2]
[385946495,1758145843821,-908.9840808,0.00025068,2]
[385946497,1758145843830,-665.2170314,0.00025068,2]
[385946499,1758145843840,-1500.0,0.00025068,2]
[385946501,1758145843850,-1503.82579537,0.00025068,2]
[385946503,1758145843859,-1010.53563473,0.00025068,2]
[385946505,1758145843869,-1500.0,0.00025068,2]
[385946507,1758145843878,-1500.0,0.00025068,2]
[385946508,1758145843887,-843.87877487,0.00025068,2]
[385946510,1758145843896,-1500.0,0.00025068,2]
[385946512,1758145843906,-1500.0,0.00025068,2]
[385946514,1758145843914,-255.54918132,0.00025068,2]
[385946516,1758145843923,-1500.0,0.00025068,2]
[385946517,1758145843932,-577.46696187,0.00025068,2]
[385946519,1758145843941,-1500.0,0.00025068,2]
[385946521,1758145843951,-502.44212702,0.00025121,2]
[385946523,1758145843960,-360.0,0.00025161,2]
[385946525,1758145843969,-1324.52,0.0002517,2]
[385946527,1758145843978,-480.0,0.0002517,3]
[385946529,1758145843987,-741.46,0.0002517,3]
[385946530,1758145843997,-480.0,0.0002517,3]
[385946532,1758145844006,-480.0,0.0002517,3]
[385946534,1758145844015,-480.0,0.0002517,3]
[385946536,1758145844024,-550.17,0.0002517,3]
[385946538,1758145844033,-480.0,0.0002517,3]
[385946539,1758145844042,-480.0,0.0002517,3]
[385946541,1758145844052,-480.0,0.00025171,3]
[385946543,1758145844061,-960.22,0.00025171,3]
[385946545,1758145844071,-480.0,0.00025171,3]
[385946547,1758145844081,-561.42,0.00025171,3]
[385946549,1758145844090,-480.0,0.00025171,3]
[385946550,1758145844099,-480.0,0.00025172,3]
[385946552,1758145844108,-492.66,0.00025172,3]
[385946554,1758145844118,-1768.55,0.00025172,3]
[385946556,1758145844127,-274.01834626,0.00025173,3]
[385946558,1758145844136,-480.0,0.00025173,3]
[385946559,1758145844146,-775.83,0.00025174,3]
[385946561,1758145844155,-515.96989613,0.0002518,2]
[385946563,1758145844165,-375.3650232,0.00025206,2]
[385946565,1758145844174,-151.0,0.00025206,2]
[385946567,1758145844184,-198.0,0.00025206,2]
[385946569,1758145844193,-175.77017753,0.00025206,2]
[385946571,1758145844202,-500.0,0.00025206,2]
[385946572,1758145844211,-252.87724383,0.00025206,2]
[385946574,1758145844220,-293.97996017,0.00025206,2]
[385946576,1758145844230,-500.0,0.00025206,2]
[385946578,1758145844239,-151.0,0.00025206,2]
[385946580,1758145844249,-500.0,0.00025206,2]
[385946582,1758145844258,-1020.0,0.00025233,2]
[385946584,1758145844267,-420.0,0.00025233,2]
[385946585,1758145844276,-420.0,0.00025233,2]
[385946587,1758145844285,-250.0,0.00025237,2]
[385946596,1758145844375,-21499.81177639,0.00025321,2]
[385946598,1758145844385,-304.64,0.00025336,3]
[385946600,1758145844395,-1200.0,0.0002535,2]
[385946602,1758145844404,-1324.52,0.0002538,2]
[385946604,1758145844414,-1324.52,0.0002538,2]
[385946606,1758145844423,-1324.52,0.0002538,2]
[385946608,1758145844432,-1324.52,0.0002538,2]
[385946610,1758145844443,-1324.62808567,0.0002538,2]
[385946611,1758145844452,-600.0,0.00025397,20]
[385946613,1758145844462,-2000.0,0.000254,2]
[385946615,1758145844471,-1073.6,0.000254,2]
[385946617,1758145844480,-1000.0,0.00025421,2]
[385946619,1758145844489,-1000.0,0.00025421,2]
[385946620,1758145844499,-1000.0,0.00025421,2]
[385946622,1758145844509,-1000.0,0.00025421,2]
[385946624,1758145844518,-1000.0,0.00025421,2]
[385946626,1758145844528,-1000.0,0.00025421,2]
[385946628,1758145844537,-1000.0,0.00025421,2]
[385946630,1758145844546,-1000.0,0.00025421,2]
[385946632,1758145844555,-1000.32943356,0.00025421,2]
[385946634,1758145844565,-1000.0,0.00025421,2]
[385946635,1758145844574,-1000.0,0.00025421,2]
[385946637,1758145844583,-1000.0,0.00025421,2]
[385946639,1758145844592,-1000.0,0.00025421,2]
[385946641,1758145844602,-1000.0,0.00025421,2]
[385946643,1758145844612,-1000.0,0.00025421,2]
[385946645,1758145844625,-1000.0,0.00025421,2]
[385946647,1758145844634,-1000.0,0.00025421,2]
[385946649,1758145844642,-1000.0,0.00025421,2]
[385946651,1758145844651,-1000.0,0.00025421,2]
[385946652,1758145844662,-1000.0,0.00025421,2]
[385946654,1758145844671,-1000.0,0.00025421,2]
[385946656,1758145844680,-757.81611805,0.00025421,2]
[385946658,1758145844690,-1000.0,0.00025421,2]
[385946660,1758145844699,-501.66121081,0.00025421,2]
[385946661,1758145844708,-533.39043042,0.00025421,2]
[385946663,1758145844717,-210.59383217,0.00025421,2]
[385946665,1758145844726,-261.12500356,0.00025421,2]
[385946667,1758145844735,-501.60180428,0.00025421,2]
[385946669,1758145844745,-500.0,0.00025421,2]
[385946671,1758145844754,-1000.0,0.00025421,2]
[385946673,1758145844763,-1088.21322845,0.00025421,2]
[385946675,1758145844772,-1000.0,0.00025421,2]
[385946677,1758145844782,-501.2056927,0.00025421,2]
[385946679,1758145844791,-480.0,0.00025444,3]
[385946681,1758145844800,-741.46,0.00025444,3]
[385946683,1758145844810,-480.0,0.00025444,3]
[385946685,1758145844819,-480.0,0.00025444,3]
[385946687,1758145844832,-480.0,0.00025444,3]
[385946689,1758145844842,-550.17,0.00025444,3]
[385946691,1758145844851,-480.0,0.00025444,3]
[385946693,1758145844860,-480.0,0.00025444,3]
[385946695,1758145844870,-480.0,0.00025445,3]
[385946697,1758145844881,-960.22,0.00025445,3]
[385946699,1758145844890,-480.0,0.00025445,3]
[385946701,1758145844899,-561.42,0.00025445,3]
[385946703,1758145844908,-480.0,0.00025445,3]
[385946705,1758145844917,-480.0,0.00025446,3]
[385946707,1758145844927,-492.66,0.00025446,3]
[385946708,1758145844936,-1768.55,0.00025446,3]
[385946709,1758145844945,-480.0,0.00025447,3]
[385946710,1758145844955,-775.83,0.00025448,3]
[385946711,1758145844964,-505.83940975,0.00025473,2]
[385946712,1758145844974,-500.36953424,0.00025473,2]
[385946713,1758145844985,-151.46513876,0.00025473,2]
[385946714,1758145844995,-150.0,0.00025473,2]
[385946715,1758145845005,-500.0,0.0002548,2]
[385946716,1758145845014,-500.0,0.0002548,2]
[385946717,1758145845024,-151.0,0.0002548,2]
[385946718,1758145845033,-500.0,0.0002548,2]
[385946719,1758145845043,-620.99,0.000255,7]
[385946720,1758145845052,-2000.0,0.00025516,2]
[385946721,1758145845061,-2000.0,0.00025516,2]
[385946722,1758145845070,-163.55172474,0.00025572,2]
[385946723,1758145845079,-209.40437684,0.00025598,2]
[385946724,1758145845088,-677.93630866,0.00025616,2]
[385946725,1758145845097,-237.42360078,0.00025616,2]
[385946726,1758145845107,-2000.0,0.00025616,2]
[385946727,1758145845117,-2000.0,0.00025616,2]
[385946728,1758145845126,-2000.0,0.00025616,2]
[385946729,1758145845135,-2000.0,0.00025616,2]
[385946730,1758145845144,-2000.0,0.00025616,2]
[385946731,1758145845154,-2000.0,0.00025616,2]
[385946732,1758145845163,-1678.03080736,0.00025616,2]
[385946733,1758145845172,-2000.0,0.00025616,2]
[385946734,1758145845182,-2000.0,0.00025616,2]
[385946735,1758145845191,-460.0,0.00025708,2]
[385946736,1758145845200,-480.0,0.00025718,3]
[385946737,1758145845209,-741.46,0.00025718,3]
[385946738,1758145845219,-480.0,0.00025718,3]
[385946739,1758145845229,-480.0,0.00025718,3]
[385946740,1758145845238,-480.0,0.00025718,3]
[385946741,1758145845248,-550.17,0.00025718,3]
[385946742,1758145845257,-480.0,0.00025718,3]
[385946743,1758145845267,-480.0,0.00025718,3]
[385946744,1758145845276,-480.0,0.00025719,3]
[385946745,1758145845285,-960.22,0.00025719,3]
[385946746,1758145845294,-480.0,0.00025719,3]
[385946747,1758145845304,-561.42,0.00025719,3]
[385946748,1758145845313,-480.0,0.0002572,3]
[385946749,1758145845322,-492.66,0.0002572,3]
[385946750,1758145845331,-1768.55,0.0002572,3]
[385946752,1758145845341,-480.0,0.00025721,3]
[385946753,1758145845351,-775.83,0.00025722,3]
[385946755,1758145845360,-500.0,0.00025747,2]
[385946756,1758145845369,-500.0,0.00025754,2]
[385946758,1758145845379,-500.0,0.00025754,2]
[385946759,1758145845388,-295.58799711,0.00025754,2]
[385946761,1758145845397,-500.0,0.00025754,2]
[385946763,1758145845407,-977.0,0.00025787,2]
[385946765,1758145845416,-634.0,0.00025787,2]
[385946767,1758145845426,-2156.0,0.00025787,2]
[385946769,1758145845435,-1837.0,0.00025787,2]
[385946771,1758145845445,-1511.57796991,0.00025968,2]
[385946773,1758145845455,-1500.0,0.00025968,2]
[385946775,1758145845465,-1504.0126241,0.00025968,2]
[385946777,1758145845475,-1503.17571614,0.00025968,2]
[385946779,1758145845484,-1500.0,0.00025968,2]
[385946781,1758145845495,-1500.0,0.00025968,2]
[385946783,1758145845505,-1500.0,0.00025968,2]
[385946785,1758145845514,-1500.0,0.00025968,2]
[385946787,1758145845525,-909.03080333,0.00025968,2]
[385946789,1758145845536,-1500.0,0.00025968,2]
[385946791,1758145845547,-1000.57142924,0.00025968,2]
[385946793,1758145845557,-1500.0,0.00025968,2]
[385946795,1758145845567,-1500.0,0.00025968,2]
[385946797,1758145845577,-1500.0,0.00025968,2]
[385946799,1758145845586,-501.45917432,0.00025968,2]
[385946801,1758145845597,-500.54040616,0.00025968,2]
[385946803,1758145845607,-617.47927903,0.00025968,2]
[385946805,1758145845621,-1500.0,0.00025968,2]
[385946808,1758145845633,-1500.0,0.00025968,2]
[385946810,1758145845643,-1500.0,0.00025968,2]
[385946812,1758145845652,-1500.0,0.00025968,2]
[385946814,1758145845663,-1500.0,0.00025968,2]
[385946816,1758145845673,-1500.0,0.00025968,2]
[385946818,1758145845682,-150.0,0.00025973,2]
[385946820,1758145845693,-480.0,0.00025992,3]
[385946822,1758145845703,-741.46,0.00025992,3]
[385946824,1758145845713,-480.0,0.00025992,3]
[385946826,1758145845722,-620.99101874,0.00025992,3]
[385946828,1758145845732,-480.0,0.00025992,3]
[385946830,1758145845742,-550.17,0.00025992,3]
[385946832,1758145845752,-480.0,0.00025992,3]
[385946834,1758145845762,-480.0,0.00025992,3]
[385946836,1758145845771,-480.0,0.00025993,3]
[385946838,1758145845780,-960.22,0.00025993,3]
[385946840,1758145845790,-480.0,0.00025993,3]
[385946842,1758145845799,-561.42,0.00025993,3]
[385946844,1758145845809,-480.0,0.00025994,3]
[385946846,1758145845818,-492.66,0.00025994,3]
[385946848,1758145845827,-1768.55,0.00025994,3]
[385946850,1758145845836,-480.0,0.00025995,3]
[385946853,1758145845846,-775.83,0.00025996,3]
[385946856,1758145845855,-160.0,0.00026027,3]
[385946858,1758145845864,-500.0,0.00026028,2]
[385946862,1758145845874,-500.0,0.00026028,2]
[385946864,1758145845883,-500.0,0.00026028,2]
[385946866,1758145845893,-156.66,0.00026043,2]
[385946867,1758145845902,-2500.0,0.00026164,2]
[385946869,1758145845911,-500.0,0.00026164,2]
[385946871,1758145845920,-1128.82877778,0.00026164,2]
[385946873,1758145845930,-2500.0,0.00026164,2]
[385946876,1758145845939,-1402.00249473,0.00026184,2]
[385946878,1758145845949,-560.0,0.00026256,2]
[385946881,1758145845958,-480.0,0.00026266,3]
[385946883,1758145845967,-741.46,0.00026266,3]
[385946885,1758145845976,-480.0,0.00026266,3]
[385946887,1758145845986,-480.0,0.00026266,3]
[385946889,1758145845995,-550.17,0.00026266,3]
[385946890,1758145846004,-480.0,0.00026266,3]
[385946892,1758145846014,-480.0,0.00026266,3]
[385946894,1758145846023,-480.0,0.00026267,3]
[385946897,1758145846033,-960.22,0.00026267,3]
[385946899,1758145846042,-480.0,0.00026267,3]
[385946901,1758145846051,-561.42,0.00026267,3]
[385946903,1758145846061,-480.0,0.00026268,3]
[385946905,1758145846071,-492.66,0.00026268,3]
[385946907,1758145846080,-1768.55,0.00026268,3]
[385946909,1758145846089,-480.0,0.00026269,3]
[385946911,1758145846099,-480.0,0.00026269,3]
[385946912,1758145846109,-775.83,0.0002627,3]
[385946914,1758145846118,-501.06223542,0.00026295,2]
[385946917,1758145846128,-500.0,0.00026302,2]
[385946919,1758145846138,-500.0,0.00026302,2]
[385946921,1758145846147,-212.31691441,0.00026302,2]
[385946923,1758145846156,-2000.0,0.000264,2]
[385946925,1758145846165,-999.999999,0.000265,5]
[385946927,1758145846174,-313.07650938,0.00026516,2]
[385946929,1758145846183,-2000.0,0.00026516,2]
[385946931,1758145846193,-504.12729615,0.00026516,2]
[385946933,1758145846203,-1392.68942554,0.00026516,2]
[385946935,1758145846212,-2000.0,0.00026516,2]
[385946937,1758145846222,-1114.69456251,0.00026516,2]
[385946939,1758145846232,-1872.54150745,0.00026516,2]
[385946941,1758145846242,-2000.0,0.00026516,2]
[385946943,1758145846251,-290.77588044,0.00026516,2]
[385946945,1758145846261,-2000.0,0.00026516,2]
[385946947,1758145846271,-500.0,0.00026516,2]
[385946949,1758145846281,-2000.0,0.00026516,2]
[385946951,1758145846290,-975.4855962,0.00026516,2]
[385946953,1758145846299,-2000.0,0.00026516,2]
[385946955,1758145846308,-480.0,0.0002654,3]
[385946957,1758145846317,-741.46,0.0002654,3]
[385946959,1758145846327,-480.0,0.0002654,3]
[385946961,1758145846338,-480.0,0.0002654,3]
[385946963,1758145846347,-550.17,0.0002654,3]
[385946965,1758145846357,-272.63886265,0.0002654,3]
[385946967,1758145846367,-480.0,0.0002654,3]
[385946969,1758145846376,-480.0,0.00026541,3]
[385946971,1758145846385,-960.22,0.00026541,3]
[385946973,1758145846394,-214.61795616,0.00026541,3]
[385946975,1758145846404,-561.42,0.00026541,3]
[385946977,1758145846414,-480.0,0.00026542,3]
[385946987,1758145846499,-492.66,0.00026542,3]
[385946989,1758145846508,-1768.55,0.00026542,3]
[385946991,1758145846518,-480.0,0.00026543,3]
[385946993,1758145846527,-480.0,0.00026543,3]
[385946995,1758145846536,-775.83,0.00026544,3]
[385946997,1758145846545,-500.0,0.00026576,2]
[385946999,1758145846555,-500.0,0.00026576,2]
[385947001,1758145846564,-2074.31,0.00026601,2]
[385947003,1758145846573,-2778.28,0.00026613,4]
[385947005,1758145846582,-2451.77186906,0.00026712,2]
[385947007,1758145846591,-660.0,0.00026804,2]
[385947009,1758145846601,-480.0,0.00026814,3]
[385947011,1758145846610,-741.46,0.00026814,3]
[385947013,1758145846622,-449.9578231,0.00026814,3]
[385947015,1758145846632,-480.0,0.00026814,3]
[385947017,1758145846641,-550.17,0.00026814,3]
[385947019,1758145846651,-480.0,0.00026814,3]
[385947022,1758145846661,-480.0,0.00026815,3]
[385947024,1758145846671,-960.22,0.00026815,3]
[385947026,1758145846679,-561.42,0.00026815,3]
[385947028,1758145846689,-480.0,0.00026816,3]
[385947030,1758145846700,-492.66,0.00026816,3]
[385947032,1758145846710,-1768.55,0.00026816,3]
[385947034,1758145846719,-480.0,0.00026817,3]
[385947036,1758145846728,-480.0,0.00026817,3]
[385947038,1758145846737,-775.83,0.00026818,3]
[385947040,1758145846747,-300.0,0.00026849,5]
[385947042,1758145846756,-500.0,0.0002685,2]
[385947044,1758145846766,-500.0,0.0002685,2]
[385947046,1758145846775,-281.59248974,0.00026967,2]
[385947048,1758145846785,-204.0,0.00027,2]
[385947050,1758145846794,-53596.8352894,0.00027,14]
[385947052,1758145846803,-2500.0,0.00027064,2]
[385947054,1758145846812,-502.83841149,0.00027064,2]
[385947056,1758145846822,-2500.0,0.00027064,2]
[385947058,1758145846831,-1210.37736818,0.00027064,2]
[385947060,1758145846841,-2500.0,0.00027064,2]
[385947062,1758145846851,-1579.58319065,0.00027064,2]
[385947064,1758145846860,-480.0,0.00027088,3]
[385947066,1758145846870,-741.46,0.00027088,3]
[385947068,1758145846879,-480.0,0.00027088,3]
[385947070,1758145846888,-550.17,0.00027088,3]
[385947072,1758145846898,-480.0,0.00027088,3]
[385947074,1758145846907,-480.0,0.00027089,3]
[385947076,1758145846916,-960.22,0.00027089,3]
[385947078,1758145846925,-561.42,0.00027089,3]
[385947080,1758145846934,-480.0,0.0002709,3]
[385947082,1758145846943,-492.66,0.0002709,3]
[385947084,1758145846952,-1768.55,0.0002709,3]
[385947086,1758145846961,-480.0,0.00027091,3]
[385947088,1758145846970,-775.83,0.00027092,3]
[385947090,1758145846979,-389.6128514,0.00027096,2]
[385947092,1758145846988,-389.6128514,0.00027096,2]
[385947094,1758145846998,-151.0,0.000271,10]
[385947096,1758145847009,-500.0,0.00027124,2]
[385947098,1758145847018,-547.72309064,0.00027124,2]
[385947100,1758145847027,-2010.73251142,0.00027135,2]
[385947102,1758145847036,-220.0,0.00027159,2]
[385947104,1758145847047,-5000.0,0.00027262,15]
[385947106,1758145847056,-5000.0,0.00027262,9]
[385947108,1758145847066,-600.0,0.00027282,2]
[385947110,1758145847075,-760.0,0.00027352,2]
[385947112,1758145847085,-476.95744281,0.00027362,3]
[385947114,1758145847094,-741.46,0.00027362,3]
[385947116,1758145847103,-480.0,0.00027362,3]
[385947118,1758145847113,-550.17,0.00027362,3]
[385947120,1758145847123,-480.0,0.00027362,3]
[385947122,1758145847132,-480.0,0.00027363,3]
[385947124,1758145847142,-960.22,0.00027363,3]
[385947126,1758145847151,-561.42,0.00027363,3]
[385947128,1758145847161,-480.0,0.00027364,3]
[385947130,1758145847170,-492.66,0.00027364,3]
[385947132,1758145847180,-1768.55,0.00027364,3]
[385947134,1758145847189,-775.83,0.00027366,3]
[385947136,1758145847199,-465.0,0.00027384,2]
[385947138,1758145847209,-587.0,0.00027384,2]
[385947140,1758145847218,-201.0,0.0002739,18]
[385947142,1758145847227,-220.0,0.00027393,7]
[385947144,1758145847237,-154.24208825,0.00027397,2]
[385947146,1758145847246,-1500.0,0.00027397,2]
[385947148,1758145847255,-160.77173361,0.00027397,2]
[385947150,1758145847265,-500.0,0.00027398,2]
[385947151,1758145847274,-1075.199999,0.000274,2]
[385947154,1758145847284,-151.89,0.0002755,15]
[385947156,1758145847294,-152.51,0.00027556,15]
[385947157,1758145847303,-156.74,0.00027558,15]
[385947159,1758145847312,-152.37,0.00027558,15]
[385947162,1758145847322,-156.74,0.00027558,15]
[385947163,1758145847332,-152.51,0.00027558,15]
[385947165,1758145847341,-156.74,0.00027558,15]
[385947167,1758145847351,-152.51,0.00027558,15]
[385947170,1758145847361,-156.74,0.00027558,15]
[385947171,1758145847370,-152.51,0.00027558,15]
[385947174,1758145847380,-220.0,0.00027567,2]
[385947175,1758145847389,-620.99,0.000276,7]
[385947177,1758145847397,-484.8258088,0.00027612,5]
[385947180,1758145847408,-3000.0,0.00027612,5]
[385947181,1758145847418,-3000.0,0.00027612,5]
[385947183,1758145847427,-741.46,0.00027636,3]
[385947186,1758145847437,-480.0,0.00027636,3]
[385947187,1758145847446,-550.17,0.00027636,3]
[385947189,1758145847456,-154.83,0.00027636,3]
[385947191,1758145847466,-1000.0,0.00027636,5]
[385947193,1758145847475,-480.0,0.00027637,3]
[385947195,1758145847485,-960.22,0.00027637,3]
[385947197,1758145847495,-561.42,0.00027637,3]
[385947199,1758145847503,-480.0,0.00027638,3]
[385947201,1758145847513,-492.66,0.00027638,3]
[385947203,1758145847523,-1768.55,0.00027638,3]
[385947205,1758145847532,-775.83,0.0002764,3]
[385947207,1758145847542,-151.89,0.0002765,15]
[385947209,1758145847551,-152.52,0.00027656,15]
[385947211,1758145847560,-156.74,0.00027658,15]
[385947213,1758145847569,-152.37,0.00027658,15]
[385947215,1758145847578,-152.52,0.00027658,15]
[385947217,1758145847588,-156.74,0.00027658,15]
[385947219,1758145847597,-152.51,0.00027658,15]
[385947221,1758145847606,-152.52,0.00027658,15]
[385947223,1758145847616,-500.0,0.00027672,2]
[385947225,1758145847629,-151.89,0.0002775,15]
[385947227,1758145847638,-156.75715952,0.00027758,15]
[385947229,1758145847648,-152.37,0.00027758,15]
[385947231,1758145847658,-156.74,0.00027758,15]
[385947233,1758145847669,-152.51,0.00027758,15]
[385947235,1758145847678,-151.90191904,0.0002785,15]
[385947237,1758145847687,-152.37,0.00027858,15]
[385947239,1758145847697,-156.74,0.00027858,15]
[385947241,1758145847706,-152.51,0.00027858,15]
[385947243,1758145847716,-168.0,0.00027889,2]
[385947245,1758145847726,-860.0,0.000279,2]
[385947247,1758145847736,-741.46,0.0002791,3]
[385947249,1758145847745,-480.0,0.0002791,3]
[385947251,1758145847754,-550.17,0.0002791,3]
[385947253,1758145847763,-480.0,0.00027911,3]
[385947255,1758145847772,-960.22,0.00027911,3]
[385947257,1758145847781,-561.42,0.00027911,3]
[385947259,1758145847790,-219.23,0.00027912,3]
[385947261,1758145847800,-492.66,0.00027912,3]
[385947263,1758145847810,-1768.55,0.00027912,3]
[385947265,1758145847819,-775.83,0.00027914,3]
[385947267,1758145847828,-720.0,0.00027937,20]
[385947269,1758145847837,-295.0,0.00027946,2]
[385947271,1758145847847,-152.37,0.00027958,15]
[385947272,1758145847856,-156.74,0.00027958,15]
[385947275,1758145847865,-152.51,0.00027958,15]
[385947276,1758145847874,-168.0,0.0002798,2]
[385947279,1758145847884,-500.0,0.00028,10]
[385947280,1758145847893,-500.0,0.00028,14]
[385947282,1758145847902,-500.0,0.00028,14]
[385947284,1758145847911,-500.0,0.00028,14]
[385947286,1758145847921,-500.0,0.00028,14]
[385947288,1758145847930,-500.0,0.00028,14]
[385947290,1758145847940,-500.0,0.00028,14]
[385947292,1758145847950,-379.31928987,0.00028,14]
[385947295,1758145847959,-150.0,0.00028,10]
[385947296,1758145847969,-1046.0,0.00028,2]
[385947298,1758145847978,-3413.1860195,0.00028002,120]
[385947300,1758145847987,-389.6128514,0.00028055,30]
[385947302,1758145847997,-389.6128514,0.00028055,30]
[385947304,1758145848006,-152.37,0.00028058,15]
[385947306,1758145848015,-152.51,0.00028058,15]
[385947308,1758145848025,-3112.0,0.00028073,7]
[385947310,1758145848034,-160.0,0.00028087,4]
[385947312,1758145848044,-1046.0,0.0002814,2]
[385947313,1758145848054,-373.5203548,0.00028143,30]
[385947314,1758145848064,-152.37,0.00028158,15]
[385947315,1758145848073,-152.51,0.00028158,15]
[385947316,1758145848084,-1710.84331519,0.0002816,5]
[385947317,1758145848094,-3500.0,0.0002816,5]
[385947318,1758145848104,-741.46,0.00028184,3]
[385947319,1758145848114,-620.82727642,0.00028184,3]
[385947320,1758145848124,-550.17,0.00028184,3]
[385947321,1758145848134,-480.0,0.00028185,3]
[385947322,1758145848144,-960.22,0.00028185,3]
[385947323,1758145848153,-561.42,0.00028185,3]
[385947324,1758145848163,-492.66,0.00028186,3]
[385947325,1758145848173,-1768.55,0.00028186,3]
[385947326,1758145848182,-775.83,0.00028188,3]
[385947327,1758145848192,-250.0,0.00028212,2]
[385947328,1758145848202,-168.0,0.00028253,2]
[385947329,1758145848211,-152.37,0.00028258,15]
[385947330,1758145848221,-152.51,0.00028258,15]
[385947332,1758145848230,-500.0,0.00028326,2]
[385947334,1758145848239,-152.38,0.00028358,15]
[385947336,1758145848249,-152.51,0.00028358,15]
[385947338,1758145848259,-168.0,0.00028372,2]
[385947340,1758145848269,-600.0,0.00028378,7]
[385947342,1758145848278,-499.3,0.0002839,2]
[385947344,1758145848288,-173.0,0.00028428,7]
[385947346,1758145848297,-700.0,0.00028437,2]
[385947348,1758145848306,-960.0,0.00028448,2]
[385947349,1758145848315,-741.46,0.00028458,3]
[385947352,1758145848325,-550.17,0.00028458,3]